bitfinex-derivatives/quotes_ETHF0:USTF0_20250224
["timestamp","ask_amount","ask_price","bid_price","bid_amount"]
[1740403206798,0.00558,2681.4,2680.8,1.1028]
[1740403207200,0.00558,2681.4,2681.1,0.74586]
[1740403207394,0.74586,2681.2,2681.1,0.74586]
[1740403207595,0.00558,2681.4,2680.9,0.5501]
[1740403207797,0.74585,2681.2,2681.1,0.74585]
[1740403208007,0.00558,2681.4,2680.9,0.5501]
[1740403208203,0.00558,2681.4,2681.3,0.74581]
[1740403209303,0.00558,2681.4,2681.3,3.95361]
[1740403209592,3.7573,2682.4,2681.3,3.5045157]
[1740403209793,0.74564,2682.0,2681.4,2.94747]
[1740403210000,1.28029112,2682.3,2681.8,1.86419]
[1740403210198,0.72269112,2682.3,2681.9,0.588]
[1740403210400,1.46824112,2682.3,2682.2,0.74556]
[1740403210701,3.2078,2682.4,2682.0,0.5856]
[1740403210902,0.74559,2682.1,2682.0,0.59118899]
[1740403211198,3.95339,2682.1,2682.0,0.00558899]
[1740403211590,0.74587,2681.1,2681.0,3.2078]
[1740403212096,0.74582,2681.3,2681.2,0.74582]
[1740403212796,0.74584,2681.2,2681.1,0.5633]
[1740403212991,5.07782899,2681.5,2681.0,0.00558899]
[1740403213195,0.74587,2681.1,2681.0,0.00558899]
[1740403213505,3.84687,2681.1,2681.0,8.99e-06]
[1740403215100,9.84687,2681.1,2681.0,8.99e-06]
[1740403216098,10.56835385,2681.1,2681.0,8.99e-06]
[1740403216593,0.74623,2679.8,2679.7,0.5676]
[1740403216799,0.74634,2679.4,2679.3,3.1]
[1740403216993,1.86556,2679.9,2679.3,1.32237]
[1740403217305,6.8679,2680.0,2679.3,44.5838]
[1740403217499,0.74633,2679.5,2679.4,0.74633]
[1740403217700,0.74633,2679.5,2679.4,0.75191899]
[1740403217901,0.00558899,2679.9,2679.4,0.00558899]
[1740403218102,0.74628,2679.7,2679.5,0.74629]
[1740403218400,0.74625,2679.8,2679.6,0.74627]
[1740403218601,0.00558899,2679.9,2679.6,0.74627]
[1740403219105,0.74626,2679.7,2679.6,0.74627]
[1740403220901,0.00558899,2679.9,2679.8,0.74623]
[1740403221109,0.00558899,2679.9,2679.6,0.74628]
[1740403221309,0.00558899,2679.9,2679.4,3.09858899]
[1740403221608,0.74631,2679.6,2679.5,0.7463]
[1740403222406,0.74631,2679.5,2679.4,3.84491899]
[1740403223015,0.74626,2679.8,2679.7,0.74625]
[1740403223205,0.00558899,2679.9,2679.4,3.09858899]
[1740403223509,0.74631,2679.5,2679.4,3.84491899]
[1740403224903,0.00558899,2679.9,2679.4,9.09858899]
[1740403225107,0.74631,2679.6,2679.5,0.74631]
[1740403225710,0.74627,2679.7,2679.6,0.74625]
[1740403225906,0.00558899,2679.9,2679.4,3.09858899]
[1740403225907,0.74631,2679.6,2679.5,0.74629]
[1740403226203,0.74631,2679.6,2679.4,3.09858899]
[1740403226204,0.74629,2679.7,2679.6,0.74626]
[1740403226905,0.75179899,2679.9,2679.8,0.74623]
[1740403227104,0.75179899,2679.9,2679.4,3.09858899]
[1740403227105,0.00558899,2679.9,2679.6,3.2078]
[1740403227300,0.00558899,2679.9,2679.7,0.5629]
[1740403227807,0.00558899,2679.9,2679.7,6.5629]
[1740403228017,3.09,2680.6,2679.8,3.09]
[1740403228308,3.2078,2680.9,2680.1,3.2078]
[1740403228512,3.2078,2681.2,2680.4,3.2078]
[1740403228704,3.2078,2681.2,2680.2,3.6699]
[1740403228705,3.6802,2681.4,2680.5,3.7697]
[1740403228904,3.2078,2681.5,2680.9,3.2078]
[1740403229109,0.00558899,2681.2,2680.9,3.2078]
[1740403229315,0.00558899,2681.2,2680.9,0.00558899]
[1740403229515,0.75144899,2681.2,2680.9,0.00558899]
[1740403229708,0.00558899,2681.2,2680.9,0.00558899]
[1740403229909,0.7459,2681.0,2680.9,0.75148899]
[1740403230319,0.7459,2681.0,2680.9,0.00558899]
[1740403230615,0.7459,2681.0,2680.9,0.75150899]
[1740403230817,0.74588,2681.1,2681.0,0.74587]
[1740403231018,0.7459,2681.0,2680.9,0.75149899]
[1740403231204,0.00558899,2681.2,2680.9,0.00558899]
[1740403231409,0.7459,2681.0,2680.9,0.00558899]
[1740403231609,0.74589,2681.1,2681.0,0.74588]
[1740403231816,0.00558899,2681.2,2681.1,0.74587]
[1740403232109,0.00558899,2681.2,2681.0,0.5806]
[1740403232308,0.00558899,2681.2,2681.1,1.30147]
[1740403232510,0.00558899,2681.2,2681.1,0.5556]
[1740403232718,0.75142899,2681.2,2681.1,1.30147]
[1740403233511,0.00558899,2681.2,2681.1,1.30147]
[1740403233713,0.75142899,2681.2,2681.1,1.30147]
[1740403234013,0.75142899,2681.2,2681.1,0.5556]
[1740403234411,0.7459,2681.0,2680.9,0.75150899]
[1740403235114,0.74589,2681.1,2681.0,0.74588]
[1740403235308,0.00558899,2681.2,2681.1,0.74587]
[1740403235309,0.75142899,2681.2,2681.1,0.74587]
[1740403235615,0.00558899,2681.2,2681.1,0.74587]
[1740403236103,0.74572,2681.7,2681.1,6.0]
[1740403236303,3.2078,2682.1,2681.6,0.7457]
[1740403236304,5.07185,2682.1,2681.6,0.7457]
[1740403236511,0.74572,2681.7,2681.6,0.7457]
[1740403236816,5.07185,2682.1,2681.5,0.74575]
[1740403236817,0.74576,2681.6,2681.5,0.74575]
[1740403237014,0.74576,2681.5,2681.4,0.5384]
[1740403237221,3.2078,2681.8,2681.4,0.5384]
[1740403237515,3.2078,2681.8,2681.1,3.7614]
[1740403237817,3.2078,2681.8,2681.1,4.3376]
[1740403240310,3.2078,2682.1,2681.4,3.2078]
[1740403240516,3.074,2682.0,2681.4,3.2078]
[1740403240710,3.2078,2682.1,2681.2,3.074]
[1740403240917,3.2078,2682.1,2681.4,3.2078]
[1740403241113,3.2078,2681.8,2681.4,3.2078]
[1740403241309,3.2078,2682.1,2681.4,3.2078]
[1740403243419,0.5672,2682.0,2681.4,3.2078]
[1740403243813,3.2078,2681.8,2681.4,3.2078]
[1740403244121,6.2788,2681.8,2681.4,3.2078]
[1740403245512,6.2788,2681.8,2681.1,1.1298]
[1740403246013,3.2078,2681.8,2681.2,3.2078]
[1740403246215,3.2078,2681.8,2681.2,3.7939]
[1740403247119,3.2078,2681.8,2681.3,3.074]
[1740403247514,3.2078,2682.1,2681.3,3.074]
[1740403247720,3.2078,2682.1,2681.5,3.2078]
[1740403247920,0.5792,2682.2,2681.5,3.2078]
[1740403248124,3.2078,2682.4,2681.6,1.86433]
[1740403248323,0.7456,2682.1,2682.0,0.74558]
[1740403248820,0.74558,2682.2,2682.1,0.74556]
[1740403249122,0.74557,2682.3,2682.2,0.74554]
[1740403249518,2.42625,2682.5,2681.8,43.20756]
[1740403249824,0.74555,2682.3,2682.2,0.74553]
[1740403250027,0.74552,2682.4,2682.3,0.74551]
[1740403250214,0.5625,2682.5,2681.9,5.07192]
[1740403250413,0.74555,2682.3,2682.2,0.74554]
[1740403250921,0.74552,2682.4,2682.3,0.74551]
[1740403251119,0.5625,2682.5,2681.9,3.2078]
[1740403251318,0.74559,2682.2,2682.1,0.74557]
[1740403251626,0.7456,2682.1,2682.0,0.74559]
[1740403252121,0.74558,2682.2,2682.1,0.74557]
[1740403252323,0.74556,2682.3,2682.2,0.74555]
[1740403252525,0.74558,2682.2,2682.1,0.74556]
[1740403254229,3.2078,2682.4,2681.9,3.065]
[1740403255324,3.2078,2682.4,2681.8,3.7512]
[1740403255515,3.2078,2682.4,2681.9,3.064]
[1740403259719,4.1622,2682.9,2682.0,40.8]
[1740403259720,3.2078,2682.7,2682.0,40.8]
[1740403260427,3.2078,2682.7,2681.9,6.018]
[1740403260623,3.2078,2682.7,2681.9,2.954]
[1740403260834,3.2078,2682.4,2681.9,6.018]
[1740403261426,3.2078,2682.4,2681.9,2.954]
[1740403261627,0.5438,2682.3,2681.9,2.954]
[1740403261826,0.5438,2682.3,2681.8,6.8152]
[1740403262033,3.2078,2682.4,2681.8,6.8152]
[1740403267432,3.2078,2682.4,2681.8,3.7512]
[1740403267733,3.2078,2682.1,2681.5,3.2078]
[1740403267927,0.581,2682.0,2681.5,3.2078]
[1740403268133,3.6113,2682.3,2681.6,1.6676]
[1740403268637,3.6113,2682.3,2681.3,3.2078]
[1740403268839,3.064,2682.3,2681.6,3.2078]
[1740403269135,3.2078,2682.4,2681.6,9.2258]
[1740403270942,3.2078,2682.4,2681.9,3.2078]
[1740403271139,0.5482,2683.4,2681.9,3.2078]
[1740403271140,3.2078,2682.7,2682.0,6.05889]
[1740403271444,0.74551,2682.5,2682.4,0.74549]
[1740403271638,3.95325,2682.7,2682.6,0.74545]
[1740403273139,3.2078,2683.1,2682.5,3.2078]
[1740403273343,3.2078,2683.1,2682.6,0.5652]
[1740403273642,0.74542,2682.8,2682.7,0.74541]
[1740403274237,0.74542,2682.7,2682.6,1.31063]
[1740403274539,0.74542,2682.7,2682.6,1.31065]
[1740403275039,0.74542,2682.7,2682.6,0.5652]
[1740403275336,0.74553,2682.3,2682.2,3.2078]
[1740403275546,0.74553,2682.3,2682.2,3.95336]
[1740403275842,0.54,2682.6,2682.2,3.2078]
[1740403276150,0.74553,2682.3,2682.2,3.95336]
[1740403276345,0.74549,2682.5,2682.4,0.74548]
[1740403276841,0.74552,2682.4,2682.3,0.74552]
[1740403277036,0.74549,2682.5,2682.4,0.74548]
[1740403277238,0.74552,2682.4,2682.3,0.74553]
[1740403277444,3.2078,2682.8,2682.2,3.2078]
[1740403277743,0.74547,2682.6,2682.5,0.74546]
[1740403277942,0.74549,2682.5,2682.4,0.74548]
[1740403278440,0.74549,2682.5,2682.2,3.2078]
[1740403278643,0.74552,2682.4,2682.3,0.74551]
[1740403279445,0.74553,2682.3,2682.2,3.2078]
[1740403279948,0.74556,2682.2,2682.1,0.59828899]
[1740403280144,3.2078,2682.8,2682.1,6.86908899]
[1740403280545,3.2078,2683.1,2682.1,6.86908899]
[1740403280738,3.2078,2683.1,2682.4,3.2078]
[1740403280942,3.2078,2683.1,2682.5,0.5496]
[1740403281149,3.2078,2683.1,2682.5,3.6126]
[1740403281647,0.5894,2683.2,2682.8,3.2078]
[1740403281848,0.5894,2683.2,2682.6,0.5761]
[1740403281849,3.7972,2683.2,2682.6,3.5301]
[1740403282144,3.7972,2683.2,2682.6,2.954]
[1740403282349,3.2078,2682.9,2682.6,2.954]
[1740403282946,3.7972,2683.2,2682.6,2.954]
[1740403283248,3.2078,2682.9,2682.6,2.954]
[1740403285443,1.1468,2682.8,2682.6,2.954]
[1740403286352,3.2078,2682.9,2682.6,2.954]
[1740403286745,3.93181386,2682.9,2682.6,2.954]
[1740403287250,3.2078,2682.9,2682.2,0.5942]
[1740403288849,3.2078,2682.6,2682.2,0.5942]
[1740403289046,3.2078,2682.9,2682.2,0.5942]
[1740403290546,3.2078,2682.6,2682.2,0.5942]
[1740403291257,3.2078,2682.9,2682.4,3.2078]
[1740403291457,3.2078,2682.9,2682.5,0.5934]
[1740403293359,3.2078,2682.9,2682.5,1.1659]
[1740403295561,3.2078,2683.2,2682.6,3.2078]
[1740403295758,3.2078,2683.8,2682.9,3.2078]
[1740403296059,0.548,2683.7,2683.0,3.637]
[1740403296260,0.74526,2683.3,2683.2,0.74528]
[1740403296559,3.13498785,2683.7,2683.1,41.3641]
[1740403296560,0.72409785,2683.7,2683.6,0.74517]
[1740403296761,0.7452,2683.6,2683.5,0.74519]
[1740403297355,0.72409785,2684.0,2683.4,3.063]
[1740403297555,0.72409785,2684.0,2683.5,0.5594]
[1740403297757,0.74517,2683.6,2683.5,1.30459]
[1740403297956,3.7558,2684.1,2683.5,0.56498899]
[1740403298159,0.548,2684.1,2683.6,1.86294]
[1740403298363,0.74504,2684.1,2684.0,0.74504]
[1740403298561,0.72311295,2684.4,2683.7,0.5449]
[1740403298760,0.74507,2684.0,2683.9,0.74507]
[1740403299071,0.72311295,2684.4,2683.7,3.7527]
[1740403299264,0.74507,2684.0,2683.9,0.74507]
[1740403299761,1.86241,2684.4,2683.7,3.7527]
[1740403299959,0.74505,2684.1,2684.0,0.74505]
[1740403300362,0.74508,2684.0,2683.9,0.74508]
[1740403300565,0.74509,2683.9,2683.8,1.3027]
[1740403300868,0.74509,2683.9,2683.8,4.3657]
[1740403301861,0.74512,2683.8,2683.7,3.7527]
[1740403302065,0.74512,2683.8,2683.7,4.35205]
[1740403302262,0.74512,2683.8,2683.5,0.56498899]
[1740403302469,0.74517,2683.6,2683.5,0.56498899]
[1740403302665,0.74517,2683.6,2683.5,0.00558899]
[1740403304165,3.6105,2683.6,2683.1,3.2078]
[1740403304370,0.74542,2682.8,2682.7,3.80741]
[1740403304661,3.2078,2683.2,2682.7,3.062]
[1740403304868,0.7454,2682.8,2682.7,3.8074]
[1740403305174,0.7454,2682.8,2682.7,3.80742]
[1740403306077,0.7454,2682.8,2682.7,3.062]
[1740403306372,0.00558899,2683.0,2682.9,0.74537]
[1740403306560,0.75095899,2683.0,2682.9,0.74537]
[1740403307669,0.00558899,2683.0,2682.6,3.2078]
[1740403307863,0.74539,2682.9,2682.8,0.74538]
[1740403308470,0.00558899,2683.0,2682.6,3.2078]
[1740403308666,0.74542,2682.8,2682.7,0.74541]
[1740403309063,5.07124,2682.9,2682.5,1.16548899]
[1740403309371,0.74545,2682.6,2682.5,0.00558899]
[1740403310069,0.74544,2682.7,2682.6,0.74545]
[1740403310371,0.74545,2682.6,2682.5,0.75104899]
[1740403310775,0.74541,2682.8,2682.7,0.7454]
[1740403311075,3.06758899,2683.0,2682.6,0.5612]
[1740403311765,3.06758899,2683.0,2682.7,3.2078]
[1740403312072,0.00558899,2683.0,2682.7,3.2078]
[1740403312268,0.00558899,2683.0,2682.8,0.5705]
[1740403313565,0.00558899,2683.0,2682.5,0.00558899]
[1740403313768,3.2078,2682.9,2682.5,0.00558899]
[1740403314370,0.5752,2682.8,2682.5,0.00558899]
[1740403314569,3.2078,2682.6,2682.5,0.00558899]
[1740403317865,3.2078,2682.6,2682.5,8.99e-06]
[1740403318571,9.2078,2682.6,2682.5,8.99e-06]
[1740403319171,3.2078,2682.6,2682.5,8.99e-06]
[1740403319671,9.2078,2682.6,2682.5,8.99e-06]
[1740403321067,9.2078,2682.6,2681.6,41.9706]
[1740403321370,3.2078,2682.3,2681.6,41.9706]
[1740403321670,3.2078,2682.3,2681.7,3.2078]
[1740403321973,3.2078,2682.3,2681.7,3.7663]
[1740403322375,3.2078,2682.3,2681.7,3.77188899]
[1740403323576,3.2078,2682.3,2681.7,0.00558899]
[1740403323768,0.5666,2682.2,2681.7,0.00558899]
[1740403324065,0.5457,2682.1,2681.7,0.00558899]
[1740403327379,3.2078,2682.3,2681.7,3.21338899]
[1740403327675,3.21338899,2683.0,2682.0,3.2078]
[1740403327878,3.06858899,2683.0,2682.3,3.2078]
[1740403328067,0.00558899,2683.0,2682.4,0.5536]
[1740403328267,1.86343,2682.9,2682.4,0.5536]
[1740403328475,3.21338899,2683.0,2682.4,0.5536]
[1740403328779,0.00558899,2683.0,2682.9,0.74537]
[1740403328975,0.00558899,2683.0,2682.9,3.95317]
[1740403329472,0.00558899,2683.0,2682.9,7.01617]
[1740403330971,0.75092899,2683.0,2682.9,3.2078]
[1740403331166,0.74537,2682.9,2682.8,3.063]
[1740403331378,0.00558899,2683.0,2682.7,1.0957]
[1740403331579,0.7454,2682.8,2682.7,1.0957]
[1740403331773,0.7454,2682.8,2682.7,0.5547]
[1740403331975,3.21338899,2683.0,2682.7,0.5547]
[1740403332171,0.00558899,2683.0,2682.9,0.74537]
[1740403333882,0.75092899,2683.0,2682.9,0.74537]
[1740403334277,0.00558899,2683.0,2682.7,0.5547]
[1740403334468,0.00558899,2683.0,2682.9,0.74537]
[1740403334670,0.7454,2682.8,2682.7,1.30011]
[1740403334974,0.7454,2682.8,2682.7,0.5547]
[1740403335375,0.7454,2682.8,2682.7,1.30012]
[1740403335571,0.00558899,2683.0,2682.9,0.74537]
[1740403335976,0.00558899,2683.0,2682.9,7.01617]
[1740403336174,0.5507,2684.0,2682.9,12.2708]
[1740403336377,0.5507,2684.0,2683.5,3.2078]
[1740403336587,0.7451,2683.9,2683.8,0.74509]
[1740403336775,3.2078,2684.3,2683.7,1.86287]
[1740403337076,3.2078,2684.3,2684.2,0.74501]
[1740403337381,3.21338899,2684.3,2684.2,0.74501]
[1740403337583,0.00558899,2684.3,2684.2,0.74501]
[1740403337778,0.74486,2684.8,2684.2,3.80801]
[1740403337982,4.8946,2685.2,2684.6,0.74487]
[1740403337983,0.74487,2684.7,2684.6,0.74487]
[1740403338176,3.2078,2684.9,2684.3,0.548]
[1740403338376,0.74494,2684.5,2684.4,0.74494]
[1740403338678,0.74494,2684.5,2684.3,0.548]
[1740403338880,0.7449,2684.6,2684.5,0.74491]
[1740403339075,3.2078,2684.9,2684.3,0.548]
[1740403339376,3.2078,2684.9,2684.4,0.5698]
[1740403339576,18.84275336,2685.0,2684.6,3.2078]
[1740403339884,18.84275336,2685.0,2684.9,3.95261]
[1740403340282,1.86183,2685.2,2684.6,3.062]
[1740403340582,3.2078,2685.3,2684.6,3.062]
[1740403340774,0.74492,2684.5,2684.4,0.5698]
[1740403340973,0.74495,2684.4,2684.3,0.548]
[1740403341381,0.74503,2684.1,2684.0,3.2078]
[1740403342880,0.74509,2683.9,2683.8,0.5698]
[1740403343079,1.86257,2684.2,2683.7,0.00558899]
[1740403343080,0.74512,2683.8,2683.7,0.00558899]
[1740403343584,7.01492,2683.8,2683.7,0.00558899]
[1740403346592,7.01492,2683.8,2683.7,0.00207422]
[1740403347689,3.95292,2683.8,2683.7,0.00207422]
[1740403347989,0.74859477,2684.0,2683.9,0.74509]
[1740403348191,0.00351477,2684.0,2683.9,0.74509]
[1740403348589,0.00351477,2684.0,2683.9,41.54509]
[1740403348789,0.74857477,2684.0,2683.9,41.54509]
[1740403348992,0.00351477,2684.0,2683.9,41.54509]
[1740403349486,0.00351477,2684.0,2683.9,0.74509]
[1740403349686,0.74857477,2684.0,2683.9,0.74509]
[1740403349886,0.00351477,2684.0,2683.9,0.74509]
[1740403350191,0.74857477,2684.0,2683.9,0.74509]
[1740403350387,0.00351477,2684.0,2683.9,0.74509]
[1740403350601,0.74857477,2684.0,2683.9,0.74509]
[1740403350797,0.00351477,2684.0,2683.9,0.74509]
[1740403350996,0.00351477,2684.0,2683.8,0.5516]
[1740403351299,0.74509,2683.9,2683.8,1.29671]
[1740403351496,0.74858477,2684.0,2683.9,0.74509]
[1740403351798,0.74509,2683.9,2683.8,1.29669]
[1740403352198,0.74857477,2684.0,2683.9,0.74509]
[1740403352393,0.00351477,2684.0,2683.9,0.74509]
[1740403353096,0.00351477,2684.0,2683.9,6.74509]
[1740403353396,0.74489,2684.7,2684.6,0.74487]
[1740403353794,5.06965,2685.2,2684.4,1.86239]
[1740403353997,0.74486,2684.8,2684.7,0.74485]
[1740403354400,0.74491,2684.6,2684.5,0.7449]
[1740403354595,3.2078,2685.2,2684.4,1.86239]
[1740403354902,0.74478,2685.1,2685.0,0.74477]
[1740403355295,3.95255,2685.2,2685.1,0.74476]
[1740403355501,3.95255,2685.2,2684.8,1.86211]
[1740403355502,0.74473,2685.3,2685.2,0.74471]
[1740403355995,0.74475,2685.2,2685.0,0.00558899]
[1740403356194,0.74476,2685.1,2685.0,0.00558899]
[1740403356394,3.2078,2685.3,2685.0,0.00558899]
[1740403356599,0.74475,2685.2,2685.1,0.74474]
[1740403356802,0.74475,2685.2,2685.1,0.74473]
[1740403357101,3.95252,2685.3,2685.2,0.74473]
[1740403357393,3.063,2685.7,2685.4,0.74466]
[1740403357394,0.74468,2685.5,2685.4,0.74466]
[1740403357595,0.74464,2685.6,2685.5,0.74462]
[1740403357793,0.74466,2685.5,2685.4,0.74464]
[1740403358702,0.74466,2685.5,2685.4,0.74467]
[1740403358997,0.7447,2685.4,2685.3,0.74469]
[1740403359192,0.74467,2685.5,2685.4,0.74466]
[1740403359891,3.2078,2685.8,2685.3,1.86176]
[1740403360191,0.74461,2685.7,2685.6,0.7446]
[1740403360696,3.2078,2686.2,2685.3,0.5916]
[1740403360903,0.74465,2685.6,2685.5,0.74463]
[1740403361603,0.7447,2685.3,2685.2,3.2078]
[1740403361809,0.74476,2685.1,2685.0,0.00558899]
[1740403361995,0.74476,2685.1,2685.0,0.75036899]
[1740403362397,0.74476,2685.1,2685.0,0.00558899]
[1740403363103,0.74476,2685.1,2685.0,0.75036899]
[1740403363303,0.74476,2685.1,2685.0,0.00558899]
[1740403364903,1.86162,2685.5,2685.0,0.00558899]
[1740403365106,0.74476,2685.1,2685.0,0.00558899]
[1740403366110,0.74469,2685.4,2685.3,0.74467]
[1740403366607,3.95239,2685.7,2685.6,0.74462]
[1740403366803,3.2078,2685.7,2685.6,0.74462]
[1740403367010,0.74457,2685.8,2685.7,0.74459]
[1740403367208,0.74461,2685.7,2685.6,0.74459]
[1740403367508,0.74458,2685.8,2685.7,0.74456]
[1740403368007,0.74452,2686.0,2685.9,0.74451]
[1740403368202,6.2958,2686.4,2686.0,0.74449]
[1740403368203,0.7445,2686.1,2686.0,0.74449]
[1740403368903,3.2078,2686.4,2685.8,3.2078]
[1740403369106,3.9522,2686.4,2686.3,0.74442]
[1740403369309,0.74442,2686.3,2685.9,2.43372]
[1740403369503,3.2078,2686.4,2685.9,0.5724]
[1740403369899,0.74446,2686.2,2686.1,0.74446]
[1740403370401,0.74449,2686.1,2686.0,0.74449]
[1740403370601,3.2078,2686.4,2685.9,0.5724]
[1740403370908,0.74451,2686.0,2685.9,0.5724]
[1740403371405,1.8611,2686.3,2685.8,3.2078]
[1740403371610,0.74453,2685.9,2685.8,3.2078]
[1740403371802,0.74451,2686.0,2685.9,0.74453]
[1740403372002,0.74452,2686.0,2685.9,0.74452]
[1740403372207,3.2078,2686.4,2685.8,3.2078]
[1740403372406,0.74453,2685.9,2685.8,3.2078]
[1740403373513,0.74453,2685.9,2685.8,3.95236]
[1740403374009,0.74453,2685.9,2685.8,3.2078]
[1740403374210,1.86107,2686.3,2685.8,3.2078]
[1740403374411,0.74453,2686.0,2685.9,0.74451]
[1740403374811,0.74453,2685.9,2685.8,3.95235]
[1740403377208,3.2078,2686.4,2685.8,3.2078]
[1740403377408,3.2078,2686.4,2685.7,0.5901]
[1740403377618,3.2078,2686.1,2685.7,0.5901]
[1740403377806,3.2078,2686.1,2685.5,3.2078]
[1740403378306,0.55,2686.3,2685.3,21.2469]
[1740403378307,3.2078,2685.8,2685.3,21.2469]
[1740403378508,6.2898,2685.8,2684.8,3.082]
[1740403378709,3.2078,2685.4,2684.8,3.082]
[1740403378913,3.2078,2685.8,2684.8,3.082]
[1740403379117,3.2078,2685.8,2685.0,3.21338899]
[1740403379416,3.2078,2685.8,2685.1,3.083]
[1740403379613,3.083,2686.0,2685.3,3.2078]
[1740403379815,3.083,2686.0,2685.4,0.5903]
[1740403381109,3.2078,2686.1,2685.4,0.5903]
[1740403381312,3.2078,2686.1,2685.4,1.1662]
[1740403381507,0.55,2686.3,2685.8,3.2078]
[1740403381709,3.082,2686.5,2685.9,0.5903]
[1740403381913,3.082,2686.5,2686.0,40.8]
[1740403382118,1.86093,2686.5,2686.0,40.8]
[1740403382418,1.86103,2686.4,2685.9,1.1639]
[1740403382608,0.74451,2686.0,2685.9,1.33481]
[1740403383415,0.74453,2685.9,2685.8,3.2078]
[1740403383617,0.74453,2685.9,2685.8,0.74456]
[1740403383809,3.2078,2686.3,2685.5,44.5814]
[1740403384013,0.74451,2686.1,2686.0,0.74449]
[1740403384420,3.2078,2686.3,2685.7,0.554]
[1740403384722,0.74452,2686.0,2685.9,0.74451]
[1740403385022,0.74451,2686.1,2686.0,0.74449]
[1740403385720,0.74448,2686.2,2686.1,0.74446]
[1740403385921,0.74447,2686.2,2686.1,0.74446]
[1740403386119,0.74451,2686.1,2686.0,0.74449]
[1740403386517,5.06891,2686.3,2685.8,3.2078]
[1740403386716,0.74453,2685.9,2685.8,3.2078]
[1740403387220,3.2078,2686.0,2685.4,0.5759]
[1740403387414,6.80204,2686.4,2685.6,3.2078]
[1740403387415,3.2078,2686.3,2685.6,3.2078]
[1740403387726,3.95225,2686.3,2686.2,0.74445]
[1740403388024,3.2078,2686.6,2685.9,3.2078]
[1740403388215,3.2078,2686.6,2686.5,0.74437]
[1740403388412,0.5823,2686.9,2686.2,5.06892]
[1740403388617,1.32657,2686.9,2686.8,0.74429]
[1740403388817,4.387,2687.1,2686.9,0.74424]
[1740403388818,0.74424,2687.0,2686.9,0.74424]
[1740403389113,3.2078,2687.1,2686.9,0.74425]
[1740403389324,3.2078,2687.1,2686.6,0.00558899]
[1740403389625,3.95203,2687.1,2687.0,0.74423]
[1740403390317,0.74418,2687.2,2687.1,0.7442]
[1740403390617,0.74416,2687.3,2687.2,0.74416]
[1740403391218,3.2078,2687.4,2687.0,0.566]
[1740403391521,0.74415,2687.3,2687.2,0.74416]
[1740403391716,0.74411,2687.5,2687.3,0.74415]
[1740403391917,7.4399,2687.8,2687.3,0.74415]
[1740403392119,0.7442,2687.1,2687.0,1.31022]
[1740403392324,0.74419,2687.2,2687.1,0.74419]
[1740403392929,0.7442,2687.1,2687.0,0.566]
[1740403393127,0.7442,2687.1,2687.0,1.31023]
[1740403394031,0.7442,2687.1,2687.0,0.566]
[1740403394324,0.7442,2687.1,2687.0,1.31023]
[1740403394925,0.7442,2687.1,2687.0,0.566]
[1740403395126,0.7442,2687.1,2687.0,1.31023]
[1740403395328,0.74419,2687.2,2687.1,0.74418]
[1740403396424,0.74416,2687.3,2687.2,0.74414]
[1740403396629,3.2078,2687.5,2687.0,2.42656]
[1740403396831,3.2078,2687.5,2687.0,0.566]
[1740403397025,0.74415,2687.4,2687.3,0.74413]
[1740403397226,0.74416,2687.3,2687.2,0.74414]
[1740403397425,1.86014,2687.7,2687.0,0.566]
[1740403397630,0.74415,2687.4,2687.3,0.74413]
[1740403397924,5.61834,2687.8,2687.0,0.566]
[1740403398125,0.74417,2687.3,2687.2,0.74414]
[1740403398929,0.7442,2687.1,2687.0,0.566]
[1740403399230,0.7442,2687.1,2687.0,1.31023]
[1740403399730,0.74932595,2687.1,2687.0,1.31023]
[1740403400328,0.00512595,2687.1,2687.0,1.31023]
[1740403402139,0.00512595,2687.1,2687.0,0.566]
[1740403405737,0.00512595,2687.1,2687.0,41.366]
[1740403406037,0.00512595,2687.1,2687.0,40.8]
[1740403406238,0.00512595,2687.1,2687.0,3.069]
[1740403406437,0.00512595,2687.1,2687.0,3.6227]
[1740403406639,0.00512595,2687.1,2687.0,44.4227]
[1740403407238,0.5505,2687.8,2687.0,50.4227]
[1740403407437,0.5815,2688.1,2687.4,3.2078]
[1740403407734,3.7914,2688.2,2687.5,3.6244]
[1740403407926,0.5836,2688.2,2687.6,0.5636]
[1740403408238,0.5836,2688.2,2687.7,3.2078]
[1740403409532,0.5836,2688.2,2687.5,2.954]
[1740403409833,3.2078,2687.7,2687.5,2.954]
[1740403410034,1.1393,2687.6,2687.5,2.954]
[1740403410432,1.1393,2687.6,2687.1,3.2078]
[1740403410637,3.2078,2687.4,2686.8,6.2758]
[1740403410835,3.2078,2687.1,2686.5,3.7751]
[1740403411235,2.41633,2687.0,2686.5,4.51946]
[1740403411429,0.74431,2686.7,2686.5,3.7751]
[1740403411738,0.74431,2686.7,2686.5,4.51946]
[1740403411925,0.74431,2686.7,2686.5,3.7751]
[1740403412130,0.74431,2686.7,2686.6,0.74992899]
[1740403412534,0.74431,2686.7,2686.6,0.00558899]
[1740403412739,0.5735,2686.9,2686.6,0.00558899]
[1740403412935,0.74429,2686.8,2686.7,0.74429]
[1740403413144,0.5735,2686.9,2686.8,0.74429]
[1740403413440,0.7443,2686.8,2686.7,0.7443]
[1740403413642,0.7442,2687.2,2687.1,0.7442]
[1740403414033,1.1446,2687.3,2686.8,0.5587]
[1740403414241,0.74423,2687.1,2687.0,0.74422]
[1740403414636,1.1446,2687.3,2686.8,3.7665]
[1740403414838,0.74426,2687.0,2686.9,0.74424]
[1740403415637,0.74426,2686.9,2686.8,4.51075]